[Event "*** Titled Tuesday Blitz"]
[Site "Chess.com"]
[Date "2020.12.29"]
[Round "11"]
[White "stephan97"]
[Black "Carnivoras"]
[Result "0-1"]
[WhiteElo "2243"]
[BlackElo "2547"]
[TimeControl "180+1"]
[EndTime "12:05:00 PST"]
[Termination "Carnivoras won by checkmate"]

1. d4 {[%clk 0:03:00.9]} 1... d5 {[%clk 0:02:28.6]} 2. c4 {[%clk 0:02:59.6]}
2... c6 {[%clk 0:02:27.8]} 3. Nf3 {[%clk 0:02:58.8]} 3... Nf6 {[%clk 0:02:24.9]}
4. Nc3 {[%clk 0:02:58.2]} 4... Bg4 {[%clk 0:02:23.2]} 5. cxd5 {[%clk 0:02:52.7]}
5... Bxf3 {[%clk 0:02:22.4]} 6. gxf3 {[%clk 0:02:51.5]} 6... cxd5 {[%clk
0:02:22.6]} 7. Qb3 {[%clk 0:02:51.2]} 7... Qd7 {[%clk 0:02:21.6]} 8. Bf4 {[%clk
0:02:50.4]} 8... e6 {[%clk 0:02:19.4]} 9. e3 {[%clk 0:02:45.9]} 9... Nc6 {[%clk
0:02:17.9]} 10. Bd3 {[%clk 0:02:38.3]} 10... Bd6 {[%clk 0:02:16]} 11. Bxd6
{[%clk 0:02:37.6]} 11... Qxd6 {[%clk 0:02:16.3]} 12. f4 {[%clk 0:02:34.8]} 12...
O-O {[%clk 0:02:15.5]} 13. h4 {[%clk 0:02:21.6]} 13... a6 {[%clk 0:01:56.6]} 14.
h5 {[%clk 0:02:18.9]} 14... b5 {[%clk 0:01:55]} 15. h6 {[%clk 0:02:17.4]} 15...
g6 {[%clk 0:01:52.9]} 16. a3 {[%clk 0:02:06.4]} 16... Rfc8 {[%clk 0:01:51.5]}
17. Rg1 {[%clk 0:01:57.6]} 17... Rab8 {[%clk 0:01:49.6]} 18. Qc2 {[%clk
0:01:53.6]} 18... b4 {[%clk 0:01:48]} 19. Bxg6 {[%clk 0:01:44]} 19... fxg6
{[%clk 0:01:25]} 20. Rxg6+ {[%clk 0:01:43.3]} 20... Kf7 {[%clk 0:01:23.4]} 21.
Rxf6+ {[%clk 0:01:10]} 21... Kxf6 {[%clk 0:01:20.5]} 22. Qxh7 {[%clk 0:01:09]}
22... Qe7 {[%clk 0:01:02.1]} 23. Qd3 {[%clk 0:00:54.6]} 23... bxc3 {[%clk
0:00:58.8]} 24. bxc3 {[%clk 0:00:52.1]} 24... Rh8 {[%clk 0:00:53.8]} 25. e4
{[%clk 0:00:45]} 25... Rxh6 {[%clk 0:00:51.3]} 26. e5+ {[%clk 0:00:43.7]} 26...
Kf7 {[%clk 0:00:50.1]} 27. Ke2 {[%clk 0:00:44]} 27... Qh4 {[%clk 0:00:48.9]} 28.
Rg1 {[%clk 0:00:38.3]} 28... Rb2+ {[%clk 0:00:46.6]} 29. Kd1 {[%clk 0:00:36.5]}
29... Qxf2 {[%clk 0:00:42]} 30. Kc1 {[%clk 0:00:21.9]} 30... Qxg1+ {[%clk
0:00:37.4]} 31. Kxb2 {[%clk 0:00:21.9]} 31... Na5 {[%clk 0:00:35.6]} 32. Qxa6
{[%clk 0:00:20.6]} 32... Rh2+ {[%clk 0:00:34]} 33. Qe2 {[%clk 0:00:19.8]} 33...
Rxe2# {[%clk 0:00:34.5]} 0-1

[Event "*** Titled Tuesday Blitz"]
[Site "Chess.com"]
[Date "2020.12.29"]
[Round "11"]
[White "lamomiablanca"]
[Black "nitpicker"]
[Result "1-0"]
[WhiteElo "2271"]
[BlackElo "2239"]
[TimeControl "180+1"]
[EndTime "12:05:04 PST"]
[Termination "lamomiablanca won on time"]

1. e4 {[%clk 0:03:00.9]} 1... d5 {[%clk 0:02:59.6]} 2. exd5 {[%clk 0:03:00.4]}
2... Qxd5 {[%clk 0:02:59.7]} 3. Nc3 {[%clk 0:02:59.1]} 3... Qd8 {[%clk
0:02:58.9]} 4. d4 {[%clk 0:02:58]} 4... Nf6 {[%clk 0:02:58.6]} 5. Nf3 {[%clk
0:02:56.2]} 5... Bg4 {[%clk 0:02:58.2]} 6. Be3 {[%clk 0:02:54.4]} 6... e6 {[%clk
0:02:56.9]} 7. Be2 {[%clk 0:02:53]} 7... c6 {[%clk 0:02:51]} 8. O-O {[%clk
0:02:51.9]} 8... Nbd7 {[%clk 0:02:50.2]} 9. Qd2 {[%clk 0:02:52.2]} 9... Bd6
{[%clk 0:02:46.6]} 10. Rad1 {[%clk 0:02:52]} 10... Qc7 {[%clk 0:02:42.1]} 11. h3
{[%clk 0:02:50.5]} 11... Bh5 {[%clk 0:02:40.7]} 12. a3 {[%clk 0:02:42.6]} 12...
h6 {[%clk 0:02:40.6]} 13. Rfe1 {[%clk 0:02:41.5]} 13... O-O-O {[%clk 0:02:39.6]}
14. b4 {[%clk 0:02:40.1]} 14... g5 {[%clk 0:02:39.7]} 15. b5 {[%clk 0:02:38.4]}
15... c5 {[%clk 0:02:33.2]} 16. b6 {[%clk 0:02:37.5]} 16... Nxb6 {[%clk
0:02:31.7]} 17. Nb5 {[%clk 0:02:37.6]} 17... Qe7 {[%clk 0:02:31.9]} 18. Nxa7+
{[%clk 0:02:36.8]} 18... Kb8 {[%clk 0:02:31.6]} 19. Nb5 {[%clk 0:02:37.4]} 19...
Ne4 {[%clk 0:02:10.1]} 20. Qa5 {[%clk 0:02:36.2]} 20... Nc8 {[%clk 0:01:59.9]}
21. dxc5 {[%clk 0:02:31.2]} 21... Bxc5 {[%clk 0:01:55]} 22. Bxc5 {[%clk
0:02:31.2]} 22... Nxc5 {[%clk 0:01:51.1]} 23. Nfd4 {[%clk 0:02:15.8]} 23... Bxe2
{[%clk 0:01:47.3]} 24. Nxe2 {[%clk 0:02:16.5]} 24... Rxd1 {[%clk 0:01:37.2]} 25.
Rxd1 {[%clk 0:02:17.4]} 25... b6 {[%clk 0:01:36.3]} 26. Qb4 {[%clk 0:02:15.5]}
26... Rd8 {[%clk 0:01:32.8]} 27. Ned4 {[%clk 0:02:16]} 27... Qb7 {[%clk
0:01:16.4]} 28. Nc6+ {[%clk 0:02:11.9]} 28... Qxc6 {[%clk 0:01:14.4]} 29. Rxd8
{[%clk 0:02:12.8]} 29... Na6 {[%clk 0:01:00.1]} 30. Qd4 {[%clk 0:02:10.6]} 30...
Qxb5 {[%clk 0:00:54.4]} 31. Qd6+ {[%clk 0:02:08.8]} 31... Nc7 {[%clk 0:00:45.2]}
32. Qf8 {[%clk 0:02:03.9]} 32... Qa6 {[%clk 0:00:39.4]} 33. Qxf7 {[%clk
0:02:02.2]} 33... Kb7 {[%clk 0:00:34.3]} 34. Qf8 {[%clk 0:01:56.5]} 34... Na7
{[%clk 0:00:28.6]} 35. Rb8+ {[%clk 0:01:55.2]} 35... Kc6 {[%clk 0:00:28.9]} 36.
Qf3+ {[%clk 0:01:55.4]} 36... Kb5 {[%clk 0:00:23.7]} 37. Rd8 {[%clk 0:01:46.6]}
37... Nc6 {[%clk 0:00:20.9]} 38. Rd6 {[%clk 0:01:45.8]} 38... Nd5 {[%clk
0:00:17.2]} 39. Rxe6 {[%clk 0:01:43.7]} 39... Nce7 {[%clk 0:00:17.5]} 40. Re5
{[%clk 0:01:41]} 40... Qb7 {[%clk 0:00:16.5]} 41. Qe4 {[%clk 0:01:38.1]} 41...
Qc6 {[%clk 0:00:13]} 42. a4+ {[%clk 0:01:35.4]} 42... Ka6 {[%clk 0:00:12.6]} 43.
c4 {[%clk 0:01:35.7]} 43... Qxa4 {[%clk 0:00:07.3]} 44. cxd5 {[%clk 0:01:33.3]}
44... Qxe4 {[%clk 0:00:06.7]} 45. Rxe4 {[%clk 0:01:34.2]} 45... Nxd5 {[%clk
0:00:07.1]} 46. Re6 {[%clk 0:01:34.7]} 46... Ka5 {[%clk 0:00:06.7]} 47. Rxh6
{[%clk 0:01:34.1]} 47... b5 {[%clk 0:00:06.9]} 48. Rh5 {[%clk 0:01:34.1]} 48...
Nc3 {[%clk 0:00:03.4]} 49. Rxg5 {[%clk 0:01:34.3]} 49... Ka4 {[%clk 0:00:03]}
50. Kf1 {[%clk 0:01:33.8]} 50... b4 {[%clk 0:00:02.6]} 51. Rg4 {[%clk
0:01:27.1]} 51... Kb5 {[%clk 0:00:01.2]} 52. Ke1 {[%clk 0:01:26.9]} 1-0

[Event "*** Titled Tuesday Blitz"]
[Site "Chess.com"]
[Date "2020.12.29"]
[Round "11"]
[White "swisspower96"]
[Black "frenchpin"]
[Result "1-0"]
[WhiteElo "2677"]
[BlackElo "2484"]
[TimeControl "180+1"]
[EndTime "12:05:07 PST"]
[Termination "swisspower96 won on time"]

1. d4 {[%clk 0:02:58.5]} 1... e6 {[%clk 0:03:00.9]} 2. e4 {[%clk 0:02:57.1]}
2... d5 {[%clk 0:03:00.7]} 3. Nc3 {[%clk 0:02:57.6]} 3... Bb4 {[%clk 0:03:01.3]}
4. e5 {[%clk 0:02:57]} 4... c5 {[%clk 0:03:01.9]} 5. a3 {[%clk 0:02:55.9]} 5...
Bxc3+ {[%clk 0:03:02.2]} 6. bxc3 {[%clk 0:02:56.8]} 6... Qa5 {[%clk 0:03:02.3]}
7. Bd2 {[%clk 0:02:55.5]} 7... Qa4 {[%clk 0:03:02.8]} 8. h4 {[%clk 0:02:41.7]}
8... b6 {[%clk 0:03:01.6]} 9. h5 {[%clk 0:02:41.9]} 9... h6 {[%clk 0:02:57.4]}
10. Bd3 {[%clk 0:02:29.8]} 10... Ba6 {[%clk 0:02:56.7]} 11. Qg4 {[%clk
0:02:25.9]} 11... Kf8 {[%clk 0:02:52.8]} 12. Rh3 {[%clk 0:02:15.9]} 12... Ne7
{[%clk 0:02:44.6]} 13. Rg3 {[%clk 0:02:12.9]} 13... Rg8 {[%clk 0:01:50.2]} 14.
Bh7 {[%clk 0:02:11.4]} 14... Ke8 {[%clk 0:01:49.8]} 15. Bxg8 {[%clk 0:02:09.1]}
15... Nxg8 {[%clk 0:01:50.4]} 16. Qxg7 {[%clk 0:02:03.6]} 16... Ne7 {[%clk
0:01:50.8]} 17. Qh7 {[%clk 0:02:03.7]} 17... cxd4 {[%clk 0:01:36.5]} 18. cxd4
{[%clk 0:01:58.2]} 18... Qb5 {[%clk 0:01:23.9]} 19. Rd3 {[%clk 0:01:43.9]} 19...
Qb2 {[%clk 0:01:23.4]} 20. Rc1 {[%clk 0:01:38.4]} 20... Bxd3 {[%clk 0:01:20.2]}
21. Qxd3 {[%clk 0:01:38.6]} 21... Nbc6 {[%clk 0:01:15.7]} 22. Ne2 {[%clk
0:01:38.6]} 22... Rc8 {[%clk 0:01:13.1]} 23. g4 {[%clk 0:01:35.8]} 23... Kd7
{[%clk 0:01:10.2]} 24. Bxh6 {[%clk 0:01:30.2]} 24... Rg8 {[%clk 0:01:05.9]} 25.
f3 {[%clk 0:01:29.2]} 25... Na5 {[%clk 0:01:02.8]} 26. Bd2 {[%clk 0:01:16.4]}
26... Nec6 {[%clk 0:00:34]} 27. h6 {[%clk 0:01:01.9]} 27... Nc4 {[%clk
0:00:33.9]} 28. Qb3 {[%clk 0:00:56.2]} 28... Qxb3 {[%clk 0:00:11.3]} 29. cxb3
{[%clk 0:00:56.3]} 29... Nxd2 {[%clk 0:00:06.5]} 30. Kxd2 {[%clk 0:00:57.2]}
30... Na5 {[%clk 0:00:06.1]} 31. Kc3 {[%clk 0:00:56.2]} 31... Rh8 {[%clk
0:00:01.6]} 32. Rh1 {[%clk 0:00:56.1]} 32... Nc6 {[%clk 0:00:01.5]} 33. g5
{[%clk 0:00:55.9]} 33... Ne7 {[%clk 0:00:01.9]} 34. Ng3 {[%clk 0:00:52.2]} 34...
Rg8 {[%clk 0:00:01.3]} 35. f4 {[%clk 0:00:51.4]} 35... Ng6 {[%clk 0:00:01.7]}
36. Nh5 {[%clk 0:00:51.7]} 36... Rh8 {[%clk 0:00:01.1]} 37. Kd3 {[%clk
0:00:52.2]} 1-0

[Event "*** Titled Tuesday Blitz"]
[Site "Chess.com"]
[Date "2020.12.29"]
[Round "11"]
[White "Martins-BR"]
[Black "PhoenixFire8"]
[Result "0-1"]
[WhiteElo "2275"]
[BlackElo "2427"]
[TimeControl "180+1"]
[EndTime "12:05:07 PST"]
[Termination "PhoenixFire8 won by checkmate"]

1. e4 {[%clk 0:03:00.9]} 1... c6 {[%clk 0:02:58.2]} 2. d4 {[%clk 0:03:00.2]}
2... g6 {[%clk 0:02:58.9]} 3. Nf3 {[%clk 0:02:55.3]} 3... Bg7 {[%clk 0:02:59]}
4. h3 {[%clk 0:02:54.7]} 4... d5 {[%clk 0:02:58.7]} 5. e5 {[%clk 0:02:53.6]}
5... Nh6 {[%clk 0:02:55.6]} 6. g4 {[%clk 0:02:49.9]} 6... O-O {[%clk 0:02:53.3]}
7. Bg2 {[%clk 0:02:49.3]} 7... f6 {[%clk 0:02:51.5]} 8. exf6 {[%clk 0:02:48.7]}
8... exf6 {[%clk 0:02:49]} 9. O-O {[%clk 0:02:48]} 9... Nf7 {[%clk 0:02:42.6]}
10. Bf4 {[%clk 0:02:44.8]} 10... Nd6 {[%clk 0:02:36.4]} 11. Nbd2 {[%clk
0:02:41.2]} 11... Na6 {[%clk 0:02:35.1]} 12. c3 {[%clk 0:02:39.7]} 12... Nc7
{[%clk 0:02:35.6]} 13. Re1 {[%clk 0:02:34.8]} 13... Ne6 {[%clk 0:02:35.4]} 14.
Bg3 {[%clk 0:02:31.2]} 14... Bh6 {[%clk 0:02:35.7]} 15. Qc2 {[%clk 0:02:23.5]}
15... Nf4 {[%clk 0:02:31.4]} 16. Bxf4 {[%clk 0:02:19.1]} 16... Bxf4 {[%clk
0:02:30.4]} 17. Re2 {[%clk 0:02:17.9]} 17... f5 {[%clk 0:02:28.8]} 18. gxf5
{[%clk 0:02:11.9]} 18... Bxf5 {[%clk 0:02:27.5]} 19. Qb3 {[%clk 0:02:11.7]}
19... Qd7 {[%clk 0:02:24]} 20. Rae1 {[%clk 0:02:10.2]} 20... Bxh3 {[%clk
0:02:20.4]} 21. Ne5 {[%clk 0:01:55.1]} 21... Qf5 {[%clk 0:01:46]} 22. Nf1 {[%clk
0:01:42.9]} 22... Qg5 {[%clk 0:01:30.2]} 23. f3 {[%clk 0:01:31.1]} 23... Nf5
{[%clk 0:01:28]} 24. Ng4 {[%clk 0:01:03.8]} 24... Bxg4 {[%clk 0:01:10.6]} 25.
fxg4 {[%clk 0:01:03.4]} 25... Qxg4 {[%clk 0:01:11]} 26. Qxb7 {[%clk 0:00:58.7]}
26... Nh4 {[%clk 0:00:58.3]} 27. Rf2 {[%clk 0:00:47.2]} 27... Bd6 {[%clk
0:00:33.2]} 28. Ree2 {[%clk 0:00:43.6]} 28... Rxf2 {[%clk 0:00:29.6]} 29. Rxf2
{[%clk 0:00:43.2]} 29... Rf8 {[%clk 0:00:22.6]} 30. Qxc6 {[%clk 0:00:41.4]}
30... Rxf2 {[%clk 0:00:19.8]} 31. Qxd5+ {[%clk 0:00:41.5]} 31... Rf7 {[%clk
0:00:20.4]} 32. Ne3 {[%clk 0:00:40.1]} 32... Qg3 {[%clk 0:00:18.4]} 33. Qe6
{[%clk 0:00:29.1]} 33... Qh2# {[%clk 0:00:18]} 0-1

[Event "*** Titled Tuesday Blitz"]
[Site "Chess.com"]
[Date "2020.12.29"]
[Round "11"]
[White "SergeyShtyka"]
[Black "azikom"]
[Result "0-1"]
[WhiteElo "2456"]
[BlackElo "2603"]
[TimeControl "180+1"]
[EndTime "12:05:12 PST"]
[Termination "azikom won on time"]

1. e4 {[%clk 0:03:00.9]} 1... d5 {[%clk 0:02:58.6]} 2. exd5 {[%clk 0:03:00.6]}
2... Qxd5 {[%clk 0:02:59.2]} 3. Nc3 {[%clk 0:02:59.3]} 3... Qa5 {[%clk
0:02:59.6]} 4. d4 {[%clk 0:02:58.9]} 4... c6 {[%clk 0:02:57.8]} 5. Nf3 {[%clk
0:02:58.8]} 5... Nf6 {[%clk 0:02:54.3]} 6. Bd2 {[%clk 0:02:57]} 6... Qb6 {[%clk
0:02:53]} 7. Bc4 {[%clk 0:02:53.1]} 7... Qxb2 {[%clk 0:02:44.4]} 8. Ne5 {[%clk
0:02:23.1]} 8... e6 {[%clk 0:02:43.4]} 9. O-O {[%clk 0:02:12.5]} 9... Qb6 {[%clk
0:02:42.6]} 10. Bg5 {[%clk 0:01:57.1]} 10... Nbd7 {[%clk 0:02:38.8]} 11. Re1
{[%clk 0:01:44.4]} 11... Be7 {[%clk 0:02:28.7]} 12. Nxf7 {[%clk 0:01:42.4]}
12... Kxf7 {[%clk 0:02:28.4]} 13. Rxe6 {[%clk 0:01:22]} 13... Kf8 {[%clk
0:02:27.8]} 14. d5 {[%clk 0:01:17.8]} 14... Qb4 {[%clk 0:02:16.6]} 15. d6 {[%clk
0:00:44]} 15... Qxc4 {[%clk 0:01:52.2]} 16. dxe7+ {[%clk 0:00:33.7]} 16... Kf7
{[%clk 0:01:47.7]} 17. Re3 {[%clk 0:00:25.8]} 17... h6 {[%clk 0:01:37.7]} 18.
Bxf6 {[%clk 0:00:25.8]} 18... Nxf6 {[%clk 0:01:36.8]} 19. Qd6 {[%clk 0:00:19.7]}
19... Re8 {[%clk 0:01:35.3]} 20. Rd1 {[%clk 0:00:15.6]} 20... Bf5 {[%clk
0:01:34.4]} 21. Rd4 {[%clk 0:00:15.1]} 21... Qa6 {[%clk 0:01:28.6]} 22. g4
{[%clk 0:00:15]} 22... Bxc2 {[%clk 0:01:21.1]} 23. Rf4 {[%clk 0:00:14.2]} 23...
c5 {[%clk 0:01:09.8]} 24. Qd5+ {[%clk 0:00:10.3]} 24... Kg6 {[%clk 0:01:07.5]}
25. Re6 {[%clk 0:00:05.5]} 25... Qa3 {[%clk 0:00:52.3]} 26. Rexf6+ {[%clk
0:00:05.2]} 26... gxf6 {[%clk 0:00:51.7]} 27. Qh5+ {[%clk 0:00:05.3]} 27... Kg7
{[%clk 0:00:51.6]} 28. Ne4 {[%clk 0:00:03.4]} 28... Qc1+ {[%clk 0:00:47.6]} 29.
Kg2 {[%clk 0:00:03.7]} 29... Qxf4 {[%clk 0:00:45.5]} 30. Nd6 {[%clk 0:00:04]}
30... Rxe7 {[%clk 0:00:41.3]} 31. Qg6+ {[%clk 0:00:01.7]} 31... Kxg6 {[%clk
0:00:40.4]} 0-1

[Event "*** Titled Tuesday Blitz"]
[Site "Chess.com"]
[Date "2020.12.29"]
[Round "11"]
[White "Region_07"]
[Black "MelihKaanCan"]
[Result "1-0"]
[WhiteElo "2473"]
[BlackElo "2336"]
[TimeControl "180+1"]
[EndTime "12:05:16 PST"]
[Termination "Region_07 won on time"]

1. d4 {[%clk 0:03:00.9]} 1... Nf6 {[%clk 0:02:59.2]} 2. Bg5 {[%clk 0:03:00.7]}
2... Ne4 {[%clk 0:02:58.2]} 3. h4 {[%clk 0:03:00]} 3... c5 {[%clk 0:02:51.3]} 4.
dxc5 {[%clk 0:03:00.9]} 4... Qa5+ {[%clk 0:02:44.7]} 5. Nd2 {[%clk 0:03:01]}
5... e6 {[%clk 0:02:03.4]} 6. c3 {[%clk 0:02:58.6]} 6... Nxd2 {[%clk 0:01:59.6]}
7. Qxd2 {[%clk 0:02:58]} 7... Qxc5 {[%clk 0:02:00]} 8. e4 {[%clk 0:02:57.1]}
8... Nc6 {[%clk 0:01:46.1]} 9. Nf3 {[%clk 0:02:53.4]} 9... d5 {[%clk 0:01:33]}
10. O-O-O {[%clk 0:02:50.5]} 10... Be7 {[%clk 0:01:11.1]} 11. exd5 {[%clk
0:02:50]} 11... exd5 {[%clk 0:01:11.5]} 12. Qxd5 {[%clk 0:02:38.9]} 12... Qxd5
{[%clk 0:01:12.4]} 13. Rxd5 {[%clk 0:02:39.1]} 13... Be6 {[%clk 0:01:12.9]} 14.
Rd1 {[%clk 0:02:37.4]} 14... Bc5 {[%clk 0:00:48.3]} 15. Bb5 {[%clk 0:02:28.5]}
15... Bxf2 {[%clk 0:00:41.5]} 16. Ne5 {[%clk 0:02:28]} 16... O-O {[%clk
0:00:39.2]} 17. Bxc6 {[%clk 0:02:17.6]} 17... bxc6 {[%clk 0:00:40.1]} 18. Nxc6
{[%clk 0:02:13]} 18... h6 {[%clk 0:00:38.2]} 19. Bf4 {[%clk 0:02:03]} 19... Bxa2
{[%clk 0:00:38.1]} 20. Rd7 {[%clk 0:01:58.5]} 20... Be6 {[%clk 0:00:36.2]} 21.
Rd2 {[%clk 0:01:49.9]} 21... Bb6 {[%clk 0:00:31.4]} 22. Re1 {[%clk 0:01:43.9]}
22... a5 {[%clk 0:00:30.3]} 23. Bd6 {[%clk 0:01:28.4]} 23... Rfe8 {[%clk
0:00:28.5]} 24. Rde2 {[%clk 0:01:07.4]} 24... a4 {[%clk 0:00:25.3]} 25. Ne7+
{[%clk 0:00:58.9]} 25... Kh7 {[%clk 0:00:24.7]} 26. Nd5 {[%clk 0:00:59.3]} 26...
Bd8 {[%clk 0:00:20.1]} 27. g3 {[%clk 0:00:53.3]} 27... Ba5 {[%clk 0:00:20.4]}
28. Nf4 {[%clk 0:00:52.1]} 28... Bd7 {[%clk 0:00:16]} 29. Re5 {[%clk 0:00:47.9]}
29... a3 {[%clk 0:00:10.7]} 30. b4 {[%clk 0:00:45]} 30... Bb6 {[%clk 0:00:05.8]}
31. Nd5 {[%clk 0:00:41.9]} 31... Bf2 {[%clk 0:00:04.2]} 32. Rf1 {[%clk
0:00:38.1]} 32... Rxe5 {[%clk 0:00:01.6]} 33. Bxe5 {[%clk 0:00:39]} 1-0

[Event "*** Titled Tuesday Blitz"]
[Site "Chess.com"]
[Date "2020.12.29"]
[Round "11"]
[White "TregubovP"]
[Black "Dynamikus"]
[Result "1-0"]
[WhiteElo "2628"]
[BlackElo "2724"]
[TimeControl "180+1"]
[EndTime "12:05:17 PST"]
[Termination "TregubovP won by resignation"]

1. e4 {[%clk 0:03:00.9]} 1... c5 {[%clk 0:02:59.4]} 2. Nf3 {[%clk 0:03:00.4]}
2... d6 {[%clk 0:02:59.8]} 3. c3 {[%clk 0:03:00.4]} 3... Nf6 {[%clk 0:02:59.7]}
4. Be2 {[%clk 0:03:00.9]} 4... Bd7 {[%clk 0:02:58.9]} 5. Qc2 {[%clk 0:02:59.8]}
5... Bc6 {[%clk 0:02:59.2]} 6. d3 {[%clk 0:02:56.9]} 6... Nbd7 {[%clk
0:02:57.2]} 7. O-O {[%clk 0:02:56.8]} 7... Rc8 {[%clk 0:02:57.4]} 8. a3 {[%clk
0:02:36.7]} 8... g6 {[%clk 0:02:54.7]} 9. b4 {[%clk 0:02:36]} 9... b6 {[%clk
0:02:55.3]} 10. bxc5 {[%clk 0:02:20.6]} 10... bxc5 {[%clk 0:02:51.4]} 11. c4
{[%clk 0:02:19.5]} 11... Bg7 {[%clk 0:02:49.9]} 12. Nc3 {[%clk 0:02:20]} 12...
O-O {[%clk 0:02:48.6]} 13. Rb1 {[%clk 0:02:20.3]} 13... Ne8 {[%clk 0:02:27.5]}
14. Be3 {[%clk 0:02:09.1]} 14... Nc7 {[%clk 0:02:22.2]} 15. Qd2 {[%clk
0:02:07.2]} 15... Ne6 {[%clk 0:02:20.5]} 16. Nd5 {[%clk 0:02:04.9]} 16... Bxd5
{[%clk 0:02:15.7]} 17. exd5 {[%clk 0:01:59.3]} 17... Nd4 {[%clk 0:02:16.6]} 18.
Nxd4 {[%clk 0:01:58.8]} 18... cxd4 {[%clk 0:02:06.9]} 19. Bg5 {[%clk 0:01:58.5]}
19... Nc5 {[%clk 0:02:04.1]} 20. Rfe1 {[%clk 0:01:57.7]} 20... Re8 {[%clk
0:01:58.3]} 21. h4 {[%clk 0:01:52.7]} 21... Qd7 {[%clk 0:01:50.7]} 22. Qf4
{[%clk 0:01:38.1]} 22... Be5 {[%clk 0:01:46.3]} 23. Qd2 {[%clk 0:01:22.2]} 23...
Qf5 {[%clk 0:01:37.9]} 24. Bf1 {[%clk 0:01:20.9]} 24... h5 {[%clk 0:01:31.3]}
25. g3 {[%clk 0:01:16.1]} 25... Bf6 {[%clk 0:01:21.9]} 26. Bf4 {[%clk
0:01:13.1]} 26... Rb8 {[%clk 0:01:18]} 27. Kh2 {[%clk 0:01:10.8]} 27... Kg7
{[%clk 0:01:03.1]} 28. Rb4 {[%clk 0:01:10.4]} 28... Na6 {[%clk 0:00:56.5]} 29.
Bh3 {[%clk 0:01:06.8]} 29... Nxb4 {[%clk 0:00:22]} 30. Bxf5 {[%clk 0:01:04.6]}
30... Na6 {[%clk 0:00:22.6]} 31. Bd7 {[%clk 0:01:02.1]} 31... Red8 {[%clk
0:00:22.3]} 32. Bb5 {[%clk 0:01:01.8]} 32... Nc5 {[%clk 0:00:22.7]} 33. Bh6+
{[%clk 0:01:01.2]} 33... Kh7 {[%clk 0:00:22.1]} 34. Bg5 {[%clk 0:01:01.6]} 34...
a6 {[%clk 0:00:20.5]} 35. Bxf6 {[%clk 0:00:57.4]} 35... exf6 {[%clk 0:00:21.4]}
36. Bc6 {[%clk 0:00:57.5]} 36... Kg7 {[%clk 0:00:21.5]} 37. Re7 {[%clk
0:00:54.4]} 37... Rb3 {[%clk 0:00:19.5]} 38. Be8 {[%clk 0:00:42.6]} 38... Kf8
{[%clk 0:00:19.9]} 39. Qe2 {[%clk 0:00:37.5]} 1-0

[Event "*** Titled Tuesday Blitz"]
[Site "Chess.com"]
[Date "2020.12.29"]
[Round "11"]
[White "Chernobay_Artem"]
[Black "Moon_stone123"]
[Result "1-0"]
[WhiteElo "2617"]
[BlackElo "2429"]
[TimeControl "180+1"]
[EndTime "12:05:17 PST"]
[Termination "Chernobay_Artem won by resignation"]

1. d4 {[%clk 0:03:00.9]} 1... d5 {[%clk 0:02:59.3]} 2. Nc3 {[%clk 0:03:00.8]}
2... Nf6 {[%clk 0:02:58]} 3. Bf4 {[%clk 0:02:59.4]} 3... c6 {[%clk 0:02:57.8]}
4. e3 {[%clk 0:02:57]} 4... Bf5 {[%clk 0:02:57]} 5. Bd3 {[%clk 0:02:52.2]} 5...
Bxd3 {[%clk 0:02:55.6]} 6. Qxd3 {[%clk 0:02:53.1]} 6... e6 {[%clk 0:02:55.2]} 7.
f3 {[%clk 0:02:48.9]} 7... Bd6 {[%clk 0:02:52.2]} 8. g4 {[%clk 0:02:40.4]} 8...
Qc7 {[%clk 0:02:48.2]} 9. Bxd6 {[%clk 0:02:32.4]} 9... Qxd6 {[%clk 0:02:49.1]}
10. g5 {[%clk 0:02:31.1]} 10... Nfd7 {[%clk 0:02:49.1]} 11. f4 {[%clk
0:02:30.1]} 11... a6 {[%clk 0:02:45.7]} 12. Nf3 {[%clk 0:02:25.8]} 12... c5
{[%clk 0:02:46]} 13. Ne5 {[%clk 0:02:19.9]} 13... Nc6 {[%clk 0:02:41.6]} 14.
Nxd7 {[%clk 0:01:53.7]} 14... Qxd7 {[%clk 0:02:40.5]} 15. dxc5 {[%clk
0:01:50.7]} 15... O-O {[%clk 0:02:25.2]} 16. a3 {[%clk 0:01:39.8]} 16... Rfd8
{[%clk 0:01:54.2]} 17. O-O-O {[%clk 0:01:25.6]} 17... Qe7 {[%clk 0:01:42.5]} 18.
Na4 {[%clk 0:01:22.3]} 18... Nb8 {[%clk 0:01:36.1]} 19. Qb3 {[%clk 0:00:54.8]}
19... Nd7 {[%clk 0:01:21.4]} 20. Qxb7 {[%clk 0:00:50.6]} 20... Rab8 {[%clk
0:01:21.7]} 21. Qc7 {[%clk 0:00:47]} 21... Rdc8 {[%clk 0:01:07]} 22. Qd6 {[%clk
0:00:45.3]} 22... Qe8 {[%clk 0:01:07.4]} 23. c6 {[%clk 0:00:40.7]} 23... Nf8
{[%clk 0:01:05.1]} 24. c7 {[%clk 0:00:22.9]} 24... Qxa4 {[%clk 0:01:04.7]} 25.
Rd4 {[%clk 0:00:22.4]} 25... Qe8 {[%clk 0:00:12.2]} 26. cxb8=Q {[%clk 0:00:22]}
26... Rxb8 {[%clk 0:00:13.1]} 27. Rb4 {[%clk 0:00:19.9]} 27... Rc8 {[%clk
0:00:13.3]} 28. Qxa6 {[%clk 0:00:19.8]} 28... e5 {[%clk 0:00:11.3]} 29. Rd1
{[%clk 0:00:17.5]} 29... exf4 {[%clk 0:00:11.3]} 30. exf4 {[%clk 0:00:18.4]}
30... Qe3+ {[%clk 0:00:11.3]} 31. Kb1 {[%clk 0:00:18.3]} 31... Qe2 {[%clk
0:00:11.8]} 32. Qxe2 {[%clk 0:00:18]} 1-0